bitfinex-derivatives/quotes_ETHF0:USTF0_20250102
["timestamp","ask_amount","ask_price","bid_price","bid_amount"]
[1735838438089,1.179,3475.0,3474.2,0.4599]
[1735838438296,2.26725405,3474.8,3474.7,0.288]
[1735838440197,0.28802,3474.6,3474.3,0.28804]
[1735838440397,5.47505405,3474.5,3474.2,0.4599]
[1735838440696,0.28804,3474.3,3474.2,0.4599]
[1735838441393,0.28804,3474.3,3473.3,2.26725405]
[1735838441394,6.18,3474.3,3472.7,3.2078]
[1735838441593,2.55537405,3473.3,3473.2,0.4626]
[1735838441802,3.73537405,3473.3,3473.2,0.4626]
[1735838441993,0.28811,3473.5,3473.4,0.28811]
[1735838442294,5.47505405,3473.6,3473.2,0.4626]
[1735838442295,3.2078,3473.6,3473.5,0.28811]
[1735838442497,5.47505405,3473.6,3473.5,0.28811]
[1735838443092,3.2078,3473.6,3473.5,0.28811]
[1735838445699,5.47505405,3473.6,3473.5,0.28811]
[1735838446205,3.2078,3473.6,3473.5,0.28811]
[1735838447002,1.18,3473.8,3473.5,0.28811]
[1735838447203,2.26725405,3473.9,3473.8,0.28808]
[1735838447504,3.2078,3474.0,3473.9,0.28807]
[1735838448001,3.49587,3474.0,3473.9,0.28807]
[1735838448397,3.2078,3474.0,3473.9,0.28807]
[1735838448698,0.28807,3474.0,3473.9,0.28807]
[1735838449004,3.2078,3474.0,3473.3,1.15234696]
[1735838449302,3.49587,3474.0,3473.8,0.28808]
[1735838449507,3.2078,3474.0,3473.9,0.72337]
[1735838450099,2.26725405,3474.2,3473.9,0.4353]
[1735838450399,0.28807,3474.0,3473.9,0.4353]
[1735838450597,3.49587,3474.0,3473.9,0.4353]
[1735838450793,3.49587,3474.0,3473.9,0.72337]
[1735838451196,3.49587,3474.0,3473.9,0.4353]
[1735838452403,3.49587,3474.0,3473.9,0.72337]
[1735838452796,3.2078,3474.0,3473.9,0.72337]
[1735838454811,3.2078,3474.4,3473.9,0.4353]
[1735838455000,3.2078,3474.4,3474.3,0.28804]
[1735838455608,0.28804,3474.3,3474.2,0.28805]
[1735838455806,3.49584,3474.4,3474.3,0.28804]
[1735838456503,0.28804,3474.3,3474.2,0.28805]
[1735838456909,3.49584,3474.4,3474.3,0.28804]
[1735838457104,0.28804,3474.3,3474.2,0.73815844]
[1735838457408,3.2078,3474.4,3474.3,0.28804]
[1735838457409,0.28804,3474.4,3474.3,0.28804]
[1735838458108,2.26725405,3474.5,3474.0,0.4536]
[1735838458303,0.28804,3474.3,3474.2,0.28805]
[1735838458809,0.28804,3474.3,3474.2,0.45033014]
[1735838460007,5.47505405,3474.5,3473.7,3.2078]
[1735838460207,0.28807,3473.9,3473.8,0.28808]
[1735838460407,0.28806,3474.1,3474.0,0.28806]
[1735838460714,0.28806,3474.1,3474.0,0.73845087]
[1735838460903,0.28806,3474.1,3474.0,0.45039087]
[1735838461300,0.28812,3473.4,3473.3,0.00252696]
[1735838461606,3.73537405,3473.4,3473.3,0.00252696]
[1735838462010,3.44725405,3473.4,3472.3,4.4994]
[1735838462313,0.28819,3472.6,3472.5,0.28818]
[1735838462505,0.28818,3472.8,3472.7,0.28817]
[1735838462906,0.28819,3472.6,3472.5,0.28818]
[1735838463214,0.28818,3472.7,3472.6,0.28817]
[1735838463406,0.2882,3472.5,3472.4,0.28819]
[1735838463807,0.2882,3472.4,3472.3,4.3446]
[1735838464211,0.2882,3472.4,3472.3,0.8486]
[1735838464414,0.28823,3472.0,3471.9,3.49603]
[1735838464615,0.28828,3471.4,3471.3,3.2078]
[1735838464807,0.28832,3471.0,3470.9,4.4792289]
[1735838466117,3.2078,3471.1,3470.9,0.28832]
[1735838466314,3.2078,3471.1,3471.0,0.28832]
[1735838466504,3.2078,3471.1,3470.5,0.4325]
[1735838467010,0.28832,3471.0,3470.6,0.28834]
[1735838467208,0.28833,3470.9,3470.5,0.72085]
[1735838467408,0.28833,3470.9,3470.6,0.28834]
[1735838467610,3.2078,3471.1,3470.5,0.4325]
[1735838467822,3.2078,3471.1,3470.3,3.2078]
[1735838467823,2.26725405,3470.9,3470.3,3.2078]
[1735838468016,2.26725405,3470.6,3470.3,3.2078]
[1735838468409,2.26725405,3470.6,3470.3,3.49617]
[1735838468711,2.26725405,3470.6,3470.2,0.28838]
[1735838468917,2.55560405,3470.6,3470.3,0.28837]
[1735838469410,0.28836,3470.5,3469.9,3.2078]
[1735838469615,2.55560405,3470.6,3470.2,0.28837]
[1735838469816,2.55560405,3470.6,3469.9,3.2078]
[1735838470013,3.2078,3471.1,3470.4,3.2078]
[1735838470214,0.2883,3471.3,3470.5,0.28836]
[1735838470412,0.2883,3471.3,3470.9,0.28832]
[1735838470612,0.2883,3471.3,3471.0,0.28832]
[1735838471017,2.26725405,3471.2,3470.6,0.4257]
[1735838471318,0.28831,3471.1,3470.8,0.28832]
[1735838471513,2.26725405,3471.2,3470.6,0.4257]
[1735838471713,2.26725405,3471.2,3470.9,0.28832]
[1735838471714,2.55555405,3471.2,3470.9,0.28832]
[1735838471909,2.26725405,3471.2,3470.6,0.4257]
[1735838472110,2.55555405,3471.2,3470.9,0.28832]
[1735838472307,2.26725405,3471.2,3470.9,0.28832]
[1735838472507,2.26725405,3471.2,3471.1,0.28831]
[1735838472805,1.18,3471.3,3471.1,0.2883]
[1735838473008,1.18,3471.3,3471.2,0.2883]
[1735838473617,1.18,3471.3,3470.8,3.2078]
[1735838473618,1.18,3471.3,3471.1,0.2883]
[1735838473915,1.18,3471.3,3470.8,3.2078]
[1735838474112,1.18,3472.2,3471.2,3.2078]
[1735838474314,2.55548405,3472.1,3471.8,0.28825]
[1735838474618,2.55548405,3472.1,3471.8,0.28824]
[1735838475018,2.26725405,3472.1,3471.9,0.28824]
[1735838475326,0.28825,3471.9,3471.7,3.49606]
[1735838475616,0.28823,3472.0,3471.8,0.28824]
[1735838475810,0.28825,3471.8,3471.7,3.2078]
[1735838476012,2.55550405,3471.8,3471.7,3.2078]
[1735838476815,2.55550405,3471.8,3471.7,3.49606]
[1735838477116,2.26725405,3471.8,3471.7,3.49606]
[1735838477614,2.26725405,3471.8,3471.7,3.2078]
[1735838477615,2.55550405,3471.8,3471.7,3.2078]
[1735838477821,2.55550405,3471.8,3471.7,3.49606]
[1735838478015,2.26725405,3471.8,3471.7,0.28826]
[1735838478919,1.18,3472.0,3471.9,0.28824]
[1735838480021,2.26725405,3472.1,3471.5,0.883]
[1735838480216,2.26725405,3471.8,3471.7,0.28826]
[1735838480617,2.26725405,3472.1,3471.5,4.0908]
[1735838480817,2.26725405,3472.1,3472.0,0.28823]
[1735838481626,3.2078,3472.5,3472.4,0.2882]
[1735838482312,3.2078,3472.5,3472.0,0.72058]
[1735838482313,2.26725405,3472.7,3472.6,0.28818]
[1735838482518,0.28817,3472.8,3472.6,0.28818]
[1735838482718,2.26725405,3473.3,3472.6,3.2078]
[1735838482919,0.23200687,3473.5,3472.6,3.2078]
[1735838482920,0.28811,3473.5,3473.3,0.28812]
[1735838483122,2.26725405,3473.6,3473.0,3.2078]
[1735838483320,2.26725405,3473.6,3473.5,0.28811]
[1735838483826,5.98512943,3473.9,3473.1,0.4229]
[1735838484022,5.47505405,3474.2,3473.4,3.2078]
[1735838484212,3.2078,3474.2,3474.1,0.28806]
[1735838485223,2.26725405,3474.5,3474.4,0.28803]
[1735838485517,5.47505405,3474.8,3473.8,6.19527405]
[1735838485720,3.2078,3474.8,3474.7,0.28801]
[1735838485923,3.2078,3474.8,3474.2,3.2078]
[1735838485924,3.4958,3474.8,3474.6,0.28801]
[1735838486316,0.28801,3474.7,3474.5,0.28802]
[1735838486717,0.28801,3474.7,3474.3,0.4229]
[1735838486920,0.28801,3474.7,3474.4,0.28803]
[1735838487122,0.28801,3474.7,3474.3,0.4229]
[1735838487123,5.9151602,3474.8,3474.3,0.71094]
[1735838487323,0.28803,3474.5,3474.3,0.71094]
[1735838487519,5.9151602,3474.8,3474.3,0.71094]
[1735838487520,0.28802,3474.6,3474.3,0.71094]
[1735838487720,0.28801,3474.7,3474.3,0.4229]
[1735838487926,0.28802,3474.6,3474.4,0.28803]
[1735838488128,5.9151602,3474.8,3474.0,0.28807]
[1735838488424,5.9151602,3474.8,3474.2,0.28805]
[1735838488927,0.28801,3474.7,3474.4,0.28803]
[1735838489227,5.9151602,3474.8,3473.9,1.14689]
[1735838489430,0.28803,3474.5,3474.3,0.28804]
[1735838489620,5.9151602,3474.8,3473.9,0.4267]
[1735838489925,0.28803,3474.5,3473.8,3.2078]
[1735838490124,0.28801,3474.7,3474.2,0.28805]
[1735838490521,0.28804,3474.4,3474.2,0.28805]
[1735838490923,5.9151602,3474.8,3473.8,3.2078]
[1735838491225,5.9151602,3474.8,3474.2,0.28804]
[1735838491426,0.28804,3474.4,3474.2,0.28804]
[1735838491629,0.28805,3474.3,3474.1,0.28805]
[1735838491820,0.28804,3474.4,3473.8,3.2078]
[1735838492015,2.7073602,3474.8,3473.8,3.2078]
[1735838492222,1.217,3474.7,3474.2,3.2078]
[1735838492421,1.217,3474.7,3474.6,0.28802]
[1735838492626,1.217,3475.1,3475.0,0.28798]
[1735838492923,2.24979538,3475.5,3475.4,0.28795]
[1735838493319,2.24979538,3475.5,3475.4,3.49575]
[1735838494022,3.2078,3476.1,3476.0,0.2879]
[1735838494236,3.4957,3476.1,3475.8,0.28792]
[1735838494428,3.4957,3476.1,3475.4,3.6332]
[1735838494429,3.2078,3476.1,3475.4,3.6332]
[1735838494726,0.28787,3476.4,3476.1,0.28789]
[1735838494926,2.7073602,3476.5,3475.4,3.6332]
[1735838495226,2.7073602,3476.1,3475.4,3.2078]
[1735838495620,0.28794,3475.5,3475.4,3.2078]
[1735838497028,0.28793,3475.8,3475.6,0.28793]
[1735838497223,1.6459,3476.0,3475.4,3.2078]
[1735838497423,0.28791,3475.9,3475.7,0.28792]
[1735838497630,0.28792,3475.8,3475.7,0.28792]
[1735838497830,0.4289,3476.0,3475.7,0.28792]
[1735838498030,0.28793,3475.7,3475.6,0.28793]
[1735838498331,0.28793,3475.7,3475.4,3.2078]
[1735838498332,0.4289,3476.0,3475.4,3.2078]
[1735838498629,0.28794,3475.5,3475.4,3.49575]
[1735838499332,0.28798,3475.1,3475.0,3.2078]
[1735838499921,0.28798,3475.1,3475.0,3.49578]
[1735838500118,0.28798,3475.1,3475.0,3.2078]
[1735838503523,2.7073602,3475.3,3474.6,3.2078]
[1735838503729,0.28801,3474.7,3474.6,3.2078]
[1735838504031,2.7073602,3474.9,3474.4,0.4459]
[1735838504234,0.4274,3475.2,3474.4,0.4459]
[1735838504433,0.28802,3474.6,3474.5,0.28802]
[1735838504628,0.4274,3475.2,3474.4,0.4459]
[1735838504934,0.28801,3474.8,3474.7,0.288]
[1735838505335,3.2078,3475.0,3474.4,0.4459]
[1735838505528,0.28803,3474.5,3474.4,0.4459]
[1735838505731,0.28802,3474.6,3474.5,0.28802]
[1735838506335,3.2078,3475.0,3474.4,0.4459]
[1735838506336,0.28803,3474.5,3474.4,0.73393]
[1735838507234,0.28802,3474.6,3474.4,0.73393]
[1735838507731,0.28801,3474.7,3474.5,0.28802]
[1735838507933,3.2078,3475.0,3474.5,0.28802]
[1735838508134,0.28802,3474.6,3474.4,0.4459]
[1735838508436,0.28803,3474.5,3474.4,0.73393]
[1735838509139,0.28803,3474.5,3474.4,0.4459]
[1735838509342,0.28805,3474.2,3474.1,0.28805]
[1735838509534,0.28805,3474.2,3474.0,3.2078]
[1735838509535,0.28806,3474.1,3474.0,3.49586]
[1735838509835,1.217,3474.6,3474.0,3.2078]
[1735838510031,0.28805,3474.2,3474.1,0.28806]
[1735838510228,1.217,3474.6,3474.0,3.2078]
[1735838510430,0.28806,3474.1,3474.0,3.2078]
[1735838511332,0.28806,3474.1,3474.0,3.49587]
[1735838511531,0.28806,3474.1,3474.0,3.2078]
[1735838511736,0.28806,3474.1,3474.0,3.49587]
[1735838513336,0.28806,3474.2,3474.1,0.28805]
[1735838513533,1.217,3474.6,3474.0,3.2078]
[1735838513736,1.217,3474.6,3474.3,0.28804]
[1735838513935,0.28803,3474.4,3474.3,0.28804]
[1735838514138,1.217,3474.6,3474.5,0.28802]
[1735838514338,1.217,3474.6,3474.2,0.72013]
[1735838514339,0.288,3474.8,3474.7,0.28801]
[1735838514645,0.288,3474.8,3474.2,0.72013]
[1735838514646,1.217,3474.9,3474.4,3.2078]
[1735838514831,3.2078,3475.0,3474.9,0.28799]
[1735838515639,0.28798,3475.1,3475.0,0.28798]
[1735838515839,0.4274,3475.2,3474.4,3.2078]
[1735838516244,0.28801,3474.7,3474.4,3.2078]
[1735838516441,0.4274,3475.2,3474.4,3.2078]
[1735838516442,0.28798,3475.0,3474.7,0.28801]
[1735838516735,0.28798,3475.1,3474.6,0.28801]
[1735838516942,3.6352,3475.2,3474.1,0.72014]
[1735838517142,0.28802,3474.6,3474.5,0.28802]
[1735838518231,2.70717559,3474.9,3474.0,3.2078]
[1735838518434,0.28803,3474.5,3474.4,0.28803]
[1735838518639,2.70717559,3474.9,3474.0,3.92796]
[1735838518640,0.28802,3474.6,3474.5,0.28802]
[1735838519342,2.9325188,3474.9,3474.1,0.72015]
[1735838519536,0.28802,3474.6,3474.5,0.28802]
[1735838519938,0.28803,3474.5,3474.4,0.28803]
[1735838520343,3.2078,3474.8,3474.0,3.2078]
[1735838520531,0.28801,3474.7,3474.6,0.28801]
[1735838520738,3.2078,3474.8,3474.7,0.28801]
[1735838520942,0.288,3474.8,3474.7,0.28801]
[1735838522041,0.288,3474.8,3474.7,0.288]
[1735838522648,0.288,3474.8,3474.1,0.72015]
[1735838522649,0.288,3474.9,3474.8,0.288]
[1735838523043,0.28801,3474.8,3474.7,0.28801]
[1735838524039,1.199,3475.0,3474.3,0.72011]
[1735838524240,1.199,3475.0,3474.9,0.28799]
[1735838524444,1.48698,3475.0,3474.9,0.28799]
[1735838524746,0.28802,3474.7,3474.6,0.28801]
[1735838524941,1.199,3475.0,3474.5,0.28802]
[1735838524942,0.28802,3474.6,3474.5,0.28802]
[1735838526343,6.63497559,3474.9,3474.0,3.92796]
[1735838526648,0.28806,3474.1,3474.0,3.49586]
[1735838526847,0.28807,3474.0,3473.9,1.14027]
[1735838527039,0.28805,3474.2,3474.1,0.28805]
[1735838527340,0.28805,3474.3,3474.2,0.28804]
[1735838528134,0.28806,3474.2,3474.1,0.28805]
[1735838528340,0.28804,3474.4,3474.3,0.28803]
[1735838528542,2.70717559,3474.5,3473.9,0.8522]
[1735838528949,0.28803,3474.4,3474.3,0.28804]
[1735838531154,0.28804,3474.4,3474.3,0.28804]
[1735838532043,0.28803,3474.5,3474.4,0.28803]
[1735838532443,0.28804,3474.4,3474.3,0.28804]
[1735838532648,0.28805,3474.3,3474.2,0.28804]
[1735838532948,0.28804,3474.3,3474.2,0.28804]
[1735838533346,0.28804,3474.4,3474.3,0.28804]
[1735838534553,2.24979538,3474.7,3473.9,0.8522]
[1735838534843,0.28804,3474.3,3474.2,0.28804]
[1735838535249,0.28804,3474.3,3473.9,0.8522]
[1735838535250,0.28804,3474.4,3474.3,0.28804]
[1735838535746,0.28805,3474.2,3474.0,0.28807]
[1735838535951,0.28805,3474.3,3474.2,0.28804]
[1735838536143,2.70717559,3474.5,3473.9,0.8522]
[1735838536444,2.99520559,3474.5,3474.4,0.28803]
[1735838536639,0.28803,3474.5,3474.4,0.28803]
[1735838537042,0.28804,3474.4,3474.3,0.28804]
[1735838537243,2.24979538,3474.7,3473.9,0.8522]
[1735838537451,2.24979538,3474.7,3474.6,0.28802]
[1735838537654,2.53780538,3474.7,3474.1,0.72015]
[1735838537845,0.28803,3474.5,3474.4,0.28803]
[1735838538045,0.28804,3474.4,3474.3,0.28804]
[1735838538254,0.28803,3474.5,3474.4,0.28803]
[1735838538441,2.55319394,3474.5,3474.4,0.28803]
[1735838538644,2.26516394,3474.5,3474.0,3.2078]
[1735838538850,0.28805,3474.3,3474.2,0.28804]
[1735838540355,0.28804,3474.4,3474.3,0.28804]
[1735838540748,2.26516394,3474.5,3473.9,1.57239]
[1735838540946,2.55319394,3474.5,3474.4,0.28803]
[1735838541148,2.26516394,3474.5,3474.4,0.28803]
[1735838541651,2.55319394,3474.5,3474.4,0.28803]
[1735838541850,0.28804,3474.4,3474.3,0.28804]
[1735838542057,2.55319394,3474.5,3474.4,0.28803]
[1735838542552,4.51495932,3474.5,3473.9,9.2594189]
[1735838542950,4.51495932,3474.5,3473.9,8.5392289]
[1735838543151,2.55321394,3474.2,3473.9,8.5392289]
[1735838543352,2.26516394,3474.2,3474.1,0.28806]
[1735838545055,2.26516394,3474.2,3473.9,8.5392289]
[1735838545245,0.28807,3474.0,3473.9,8.5392289]
[1735838545558,0.28807,3474.0,3473.9,7.6870289]
[1735838546049,0.28807,3474.0,3473.9,4.7672989]
[1735838546642,2.26516394,3474.2,3473.9,4.4792289]
[1735838546852,2.26516394,3474.2,3474.1,0.28806]
[1735838547155,5.64000505,3474.2,3474.1,0.28806]
[1735838547458,3.37484111,3474.2,3474.1,0.28806]
[1735838547950,2.25002378,3474.2,3474.1,0.28806]
[1735838548952,0.28806,3474.1,3474.0,0.28806]
[1735838549155,0.28806,3474.1,3474.0,4.7672889]
[1735838549450,0.28806,3474.1,3474.0,4.4792289]
[1735838550149,0.28806,3474.1,3473.6,8.91801215]
[1735838550150,0.28809,3473.7,3473.6,6.79656755]
[1735838550361,3.73425394,3473.7,3473.6,6.79656755]
[1735838551867,3.73425394,3473.7,3473.0,3.2078]
[1735838551868,0.28814,3473.3,3473.2,0.28813]
[1735838552158,2.26516394,3473.4,3473.0,3.2078]
[1735838552458,0.4478,3473.6,3473.0,3.2078]
[1735838552459,2.55330394,3473.1,3473.0,3.2078]
[1735838553153,4.79742584,3473.1,3473.0,3.2078]
[1735838553359,0.28818,3472.7,3472.6,0.28817]
[1735838553655,7.71708584,3473.1,3472.5,3.2078]
[1735838553860,0.28817,3472.9,3472.8,0.28816]
[1735838554655,0.28818,3472.8,3472.7,0.28817]
[1735838554857,0.28819,3472.7,3472.6,0.28818]
[1735838555253,0.28819,3472.7,3472.3,0.8787]
[1735838555457,0.2882,3472.4,3472.3,1.1669]
[1735838555652,0.2882,3472.4,3472.3,0.8787]
[1735838556057,2.26516394,3472.5,3472.0,3.2078]
[1735838556254,2.26516394,3472.2,3472.0,3.2078]
[1735838556459,0.28822,3472.1,3472.0,3.2078]
[1735838556661,2.55338394,3472.2,3472.1,0.28822]
[1735838556854,2.26516394,3472.2,3472.0,3.2078]
[1735838557054,2.26516394,3472.2,3472.0,3.49603]
[1735838557055,0.28822,3472.1,3472.0,3.49603]
[1735838557356,0.28822,3472.1,3472.0,3.2078]
[1735838557660,0.28826,3471.7,3471.6,0.28827]
[1735838557964,2.26516394,3471.9,3471.3,0.8981]
[1735838558165,2.26516394,3471.9,3471.7,0.28825]
[1735838558360,2.26516394,3471.9,3471.3,0.8981]
[1735838558663,0.28825,3471.8,3471.6,0.28826]
[1735838558956,2.55341394,3471.9,3471.6,0.28826]
[1735838559360,2.55341394,3471.9,3471.8,0.28825]
[1735838559361,2.26516394,3471.9,3471.8,0.28825]
[1735838559664,1.181,3472.2,3472.1,0.28822]
[1735838560066,3.73438394,3472.2,3472.0,0.28823]
[1735838560268,3.73438394,3472.2,3472.1,0.4296]
[1735838560764,3.44616394,3472.2,3472.1,0.4296]
[1735838560965,3.44616394,3472.2,3472.1,0.71782]
[1735838561270,3.44616394,3472.2,3472.1,0.4296]
[1735838561459,3.44616394,3472.2,3472.1,0.71782]
[1735838561765,1.181,3472.2,3472.1,0.71782]
[1735838562459,1.46922,3472.2,3472.1,0.71782]
[1735838563062,1.181,3472.2,3472.1,0.71782]
[1735838565470,1.46922,3472.2,3472.1,0.4296]
[1735838565769,0.28822,3472.1,3472.0,0.4273]
[1735838566265,1.181,3472.2,3472.1,0.28822]
[1735838567464,1.46919,3472.6,3472.1,0.72057]
[1735838567676,1.46919,3472.6,3472.5,0.28819]
[1735838567877,0.2882,3472.5,3472.4,0.2882]
[1735838569274,1.46919,3472.6,3472.5,0.28819]
[1735838570176,1.181,3472.6,3472.5,0.28819]
[1735838570368,1.46918,3472.6,3472.5,0.28819]
[1735838570572,0.28818,3472.7,3472.6,0.28817]
[1735838571776,0.2882,3472.6,3472.5,0.28819]
[1735838572864,2.26516394,3472.8,3472.3,0.72053]
[1735838573069,0.28816,3473.0,3472.9,0.28815]
[1735838574273,0.28817,3472.9,3472.8,0.28816]
[1735838576073,2.2441219,3473.5,3472.6,2.26516394]
[1735838576379,2.2441219,3473.5,3472.4,3.2078]
[1735838576380,2.2441219,3473.5,3473.4,0.28812]
[1735838576878,2.5322319,3473.5,3473.4,0.28812]
[1735838577177,2.2441219,3473.5,3473.4,0.28812]
[1735838577570,3.2078,3473.8,3473.7,0.28809]
[1735838577974,0.28806,3474.1,3474.0,0.28807]
[1735838578681,0.28806,3474.2,3474.1,0.28805]
[1735838578980,2.2441219,3474.5,3473.8,2.98536394]
[1735838579180,0.28804,3474.4,3474.3,0.28804]
[1735838579372,0.28803,3474.4,3474.0,0.28807]
[1735838579573,0.28803,3474.4,3474.3,0.28804]
[1735838579768,2.2441219,3474.5,3473.9,0.8954]
[1735838579769,0.28805,3474.3,3473.9,0.8954]
[1735838579976,2.2441219,3474.5,3473.9,0.8954]
[1735838580177,2.26516394,3474.3,3473.9,0.8954]
[1735838580477,0.28806,3474.1,3474.0,0.28806]
[1735838581178,0.28806,3474.1,3474.0,0.28807]
[1735838581482,0.28806,3474.2,3474.1,0.28806]
[1735838581674,1.181,3474.5,3473.9,0.8954]
[1735838581875,0.28806,3474.2,3474.0,0.28807]
[1735838582381,0.28806,3474.1,3474.0,0.28807]
[1735838582582,0.28806,3474.1,3473.9,0.8954]
[1735838582583,0.28807,3474.0,3473.9,0.28807]
[1735838582782,0.28806,3474.1,3474.0,0.28806]
[1735838582978,0.28805,3474.2,3473.6,3.654]
[1735838583283,5.47296394,3474.3,3473.6,3.654]
[1735838583585,0.28806,3474.1,3474.0,0.28806]
[1735838583880,3.2078,3474.3,3473.6,3.654]
[1735838584183,3.2078,3474.3,3474.2,0.28805]
[1735838584576,1.46903,3474.5,3474.4,0.28803]
[1735838584981,1.181,3474.5,3474.4,0.28803]
[1735838586381,1.181,3474.5,3473.9,0.72019]
[1735838586590,1.181,3474.5,3474.3,0.28804]
[1735838586887,3.2078,3474.7,3474.1,3.2078]
[1735838587072,2.55318394,3474.6,3474.1,3.2078]
[1735838587272,3.49581,3474.7,3474.5,0.28802]
[1735838587583,3.2078,3474.7,3474.6,0.28802]
[1735838588084,3.49581,3474.7,3474.3,0.4431]
[1735838588381,0.28803,3474.5,3474.4,0.28803]
[1735838588580,0.28802,3474.6,3474.5,0.28802]
[1735838588787,0.28803,3474.4,3474.3,0.73114]
[1735838588982,0.28803,3474.5,3474.4,0.28803]
[1735838589275,0.28803,3474.4,3474.3,0.73114]
[1735838589483,2.26516394,3474.6,3474.3,0.4431]
[1735838589684,3.2078,3474.7,3474.6,0.28802]
[1735838589685,3.49581,3474.7,3474.6,0.28802]
[1735838589874,3.49581,3474.7,3474.3,0.4431]
[1735838589875,3.2078,3474.7,3474.3,0.4431]
[1735838590074,3.2078,3474.7,3474.2,0.4615]
[1735838590075,2.26516394,3474.6,3474.2,0.4615]
[1735838590271,2.26516394,3474.6,3474.3,0.28804]
[1735838590485,0.28803,3474.5,3474.2,0.4615]
[1735838590781,2.55318394,3474.6,3474.5,0.28803]
[1735838591177,2.26516394,3474.6,3474.2,0.4615]
[1735838591384,2.55318394,3474.6,3474.5,0.28803]
[1735838591586,2.26516394,3474.6,3473.8,0.4256]
[1735838591786,0.28807,3474.0,3473.9,0.28807]
[1735838591981,0.28807,3474.0,3473.7,0.73179]
[1735838591982,0.28808,3473.8,3473.7,0.73179]
[1735838592180,2.26516394,3474.0,3473.6,3.2078]
[1735838592481,0.28808,3473.9,3473.8,0.28808]
[1735838592880,2.55323394,3474.0,3473.9,0.28807]
[1735838593073,2.55323394,3474.0,3473.6,3.2078]
[1735838593272,2.55323394,3474.0,3473.7,0.28809]
[1735838593585,2.26516394,3474.0,3473.6,3.2078]
[1735838593788,0.28807,3474.1,3473.8,0.28808]
[1735838593983,0.28807,3474.0,3473.9,0.4258]
[1735838595286,3.4251219,3474.4,3473.9,0.4258]
[1735838595486,3.65424285,3474.1,3474.0,0.28806]
[1735838595686,0.28807,3474.0,3473.9,0.4258]
[1735838596584,3.36618285,3474.1,3473.8,0.4456]
[1735838596585,2.2351311,3474.1,3473.8,0.4456]
[1735838596788,0.28807,3473.9,3473.8,0.4456]
[1735838597391,0.28809,3473.7,3473.6,3.2078]
[1735838597593,0.28809,3473.8,3473.6,3.2078]
[1735838597994,2.2351311,3473.9,3473.6,3.2078]
[1735838597995,0.28809,3473.7,3473.6,3.2078]
[1735838598690,2.2351311,3473.9,3473.6,3.2078]
[1735838598892,2.5232111,3473.9,3473.7,0.28809]
[1735838599086,2.5232111,3473.9,3473.6,3.2078]
[1735838599289,2.2351311,3473.9,3473.4,0.4331]
[1735838599687,2.2351311,3473.9,3473.5,0.2881]
[1735838599886,0.2881,3473.7,3473.4,0.4331]
[1735838600088,0.2881,3473.6,3473.5,0.2881]
[1735838600285,3.44616394,3473.7,3473.4,0.4331]
[1735838600590,1.181,3473.7,3473.6,0.2881]
[1735838600791,1.46909,3473.7,3473.6,0.2881]
[1735838600991,1.181,3473.7,3473.4,0.4404]
[1735838601186,1.181,3473.7,3473.6,0.2881]
[1735838604489,0.73967,3474.0,3473.4,0.4404]
[1735838604686,0.4602,3474.2,3473.7,3.2078]
[1735838604889,0.28804,3474.4,3473.8,0.28808]
[1735838605083,1.181,3474.4,3473.8,0.4286]
[1735838605283,1.181,3474.4,3473.9,0.4586]
[1735838605700,0.28804,3474.3,3474.2,0.28805]
[1735838606185,0.28805,3474.3,3474.2,0.28805]
[1735838606389,1.181,3474.4,3473.9,0.4586]
[1735838606592,1.181,3474.4,3474.3,0.28804]
[1735838607099,5.76098394,3474.6,3474.5,0.28803]
[1735838607591,0.28803,3474.5,3474.4,0.28803]
[1735838609191,5.47296394,3474.6,3474.1,0.4521]
[1735838609496,0.28805,3474.4,3474.3,0.28803]
[1735838609691,5.47296394,3474.6,3474.1,0.4521]
[1735838609989,2.26516394,3474.3,3473.9,0.4586]
[1735838610299,4.4882438,3474.5,3473.9,0.4586]
[1735838610497,0.28807,3474.1,3474.0,0.28806]
[1735838610698,0.28806,3474.2,3474.1,0.28805]
[1735838611397,3.35721473,3474.2,3473.9,0.4586]
[1735838611598,0.28807,3474.1,3474.0,0.28806]
[1735838611793,3.35721473,3474.2,3473.9,0.4586]
[1735838611988,0.28807,3474.0,3473.9,0.74667]
[1735838612188,3.35721473,3474.2,3473.9,0.4586]
[1735838612387,2.26516394,3474.3,3474.0,0.28806]
[1735838612388,3.64527473,3474.1,3474.0,0.28806]
[1735838613202,3.35721473,3474.1,3474.0,0.28806]
[1735838615897,3.35721473,3474.2,3474.1,0.28806]
[1735838616396,3.35721473,3474.2,3474.1,5.76102394]
[1735838616598,4.4882438,3474.4,3474.3,0.28804]
[1735838616801,5.62858046,3474.6,3474.5,0.28803]
[1735838616802,2.2432933,3474.6,3474.5,0.28803]
[1735838617003,2.2432933,3474.6,3474.5,5.76099394]
[1735838617299,2.2432933,3474.6,3474.5,10.76099394]
[1735838617499,2.80743325,3474.7,3474.5,10.47296394]
[1735838617701,0.57225325,3474.7,3474.6,0.28802]
[1735838618203,0.57225325,3474.7,3474.6,5.28802]
[1735838618400,4.4882438,3474.9,3474.7,3.79]
[1735838618602,4.9430438,3476.0,3474.9,3.79]
[1735838618798,4.9430438,3476.0,3475.8,0.28791]
[1735838618998,5.2309538,3476.0,3475.4,3.2078]
[1735838619199,4.9430438,3476.0,3475.4,3.49575]
[1735838619398,2.26516394,3475.8,3475.4,3.2078]
[1735838619801,0.28794,3475.5,3475.4,3.2078]
[1735838620307,0.28794,3475.5,3475.4,3.49575]
[1735838620511,0.28794,3475.5,3475.4,3.2078]
[1735838621005,0.28794,3475.5,3475.3,0.28795]
[1735838621006,2.26516394,3475.8,3474.9,3.2078]